fUST/lending_fUST_20240416
["ID","MTS","AMOUNT","RATE_DAILY","PERIOD"]
[322668057,1713199657102,-545.37,0.00032876,7]
[322668058,1713199657121,-500.0,0.00032876,7]
[322668059,1713199657140,-500.0,0.00032876,7]
[322668060,1713199657160,-2587.53,0.00032876,7]
[322668061,1713199657183,-9326.34,0.00032876,7]
[322668062,1713199657202,-500.0,0.00032876,7]
[322668063,1713199657221,-500.0,0.00032876,7]
[322668064,1713199657241,-500.0,0.00032876,7]
[322668065,1713199657262,-503.85,0.00032876,7]
[322668066,1713199657283,-500.0,0.00032876,7]
[322668067,1713199657303,-500.0,0.00032876,7]
[322668068,1713199657323,-486.97417701,0.00032876,7]
[322668069,1713199657343,-500.0,0.00032876,7]
[322668070,1713199657363,-500.0,0.00032876,7]
[322668071,1713199657410,-500.0,0.00032876,7]
[322668072,1713199657443,-716.92,0.00032876,7]
[322668073,1713199657463,-500.0,0.00032876,7]
[322668074,1713199657483,-500.0,0.00032876,7]
[322668075,1713199657503,-8382.24,0.00032876,7]
[322668076,1713199657524,-663.12,0.00032876,7]
[322668077,1713199657543,-500.0,0.00032876,7]
[322668078,1713199657563,-500.0,0.00032876,7]
[322668079,1713199657582,-503.14910431,0.00032876,7]
[322668080,1713199657601,-500.0,0.00032876,7]
[322668081,1713199657621,-500.0,0.00032876,7]
[322668082,1713199657640,-500.0,0.00032876,7]
[322668083,1713199657660,-500.0,0.00032876,7]
[322668084,1713199657685,-500.0,0.00032876,7]
[322668085,1713199657708,-5943.25,0.00032876,7]
[322668086,1713199657727,-500.6998944,0.00032876,2]
[322668087,1713199657747,-2641.36,0.00032876,7]
[322668088,1713199657768,-500.0,0.00032876,7]
[322668089,1713199657787,-500.0,0.00032876,7]
[322668090,1713199657807,-500.0,0.00032876,7]
[322668091,1713199657828,-2245.24,0.00032876,7]
[322668092,1713199657847,-1796.91,0.00032876,7]
[322668093,1713199657868,-776.46,0.00032876,7]
[322668094,1713199657889,-500.0,0.00032876,7]
[322668095,1713199657910,-500.0,0.00032876,7]
[322668096,1713199657933,-500.0,0.00032876,7]
[322668097,1713199657954,-500.0,0.00032876,7]
[322668098,1713199657978,-500.0,0.00032876,7]
[322668099,1713199657999,-778.1,0.00032876,7]
[322668100,1713199658019,-523.2291265,0.00032876,7]
[322668101,1713199658039,-500.0,0.00032876,7]
[322668102,1713199658061,-500.0,0.00032876,7]
[322668103,1713199658081,-500.0,0.00032876,7]
[322668104,1713199658101,-500.0,0.00032876,7]
[322668105,1713199658121,-500.0,0.00032876,7]
[322668106,1713199658141,-500.0,0.00032876,7]
[322668107,1713199658161,-487.47362235,0.00032876,7]
[322668108,1713199658182,-500.0,0.00032876,7]
[322668109,1713199658202,-500.0,0.00032876,7]
[322668110,1713199658222,-1318.55,0.00032876,7]
[322668111,1713199658242,-500.0,0.00032876,7]
[322668112,1713199658262,-500.0,0.00032876,7]
[322668113,1713199658282,-615.39,0.00032876,7]
[322668114,1713199658304,-1691.29,0.00032876,7]
[322668115,1713199658323,-1273.92,0.00032876,7]
[322668116,1713199658343,-500.0,0.00032876,7]
[322668117,1713199658362,-4846.42835322,0.00032876,5]
[322668118,1713199658382,-4086.84,0.00032876,7]
[322668119,1713199658402,-500.0,0.00032876,7]
[322668120,1713199658422,-868.99,0.00032876,7]
[322668121,1713199658441,-566.27547528,0.00032876,7]
[322668122,1713199658462,-500.0,0.00032876,7]
[322668123,1713199658482,-7622.93,0.00032876,7]
[322668124,1713199658618,-500.0,0.00032876,7]
[322668125,1713199658639,-500.0,0.00032876,7]
[322668126,1713199658659,-500.0,0.00032876,7]
[322668127,1713199658686,-638.73076859,0.00032876,7]
[322668128,1713199658708,-578.6697519,0.00032913,2]
[322668129,1713199658730,-301.99937121,0.00032975,7]
[322668130,1713199658750,-580.60173282,0.00032975,7]
[322668131,1713199658771,-19586.77532869,0.00032976,2]
[322668132,1713199658793,-578.6697519,0.00032981,2]
[322668133,1713199658815,-578.6697519,0.0003305,2]
[322668134,1713199660306,-157.65740478,0.00033089,3]
[322668135,1713199660329,-306.0,0.00033127,2]
[322668136,1713199660356,-4454.5,0.00033149,2]
[322668137,1713199660379,-4454.5,0.00033149,2]
[322668138,1713199660403,-4454.5,0.00033149,2]
[322668139,1713199660428,-4454.5,0.00033149,2]
[322668140,1713199660455,-7177.38402259,0.0003315,5]
[322668141,1713199660478,-500.0,0.0003315,7]
[322668142,1713199660500,-512.76270628,0.0003315,7]
[322668143,1713199660520,-500.0,0.0003315,7]
[322668144,1713199660541,-635.20176344,0.0003315,7]
[322668145,1713199660562,-500.0,0.0003315,7]
[322668146,1713199660584,-500.0,0.0003315,7]
[322668147,1713199660605,-500.0,0.0003315,7]
[322668148,1713199660627,-300.0,0.0003315,7]
[322668149,1713199660649,-261.11522902,0.0003315,7]
[322668150,1713199660674,-597.0811703,0.0003315,7]
[322668151,1713199660696,-501.84482706,0.0003315,7]
[322668152,1713199660716,-500.0,0.0003315,7]
[322668153,1713199660736,-740.08,0.0003315,7]
[322668154,1713199660756,-500.0,0.0003315,7]
[322668155,1713199660776,-500.0,0.0003315,7]
[322668156,1713199660796,-500.0,0.0003315,7]
[322668157,1713199660817,-500.0,0.0003315,7]
[322668158,1713199660837,-150.68989415,0.0003315,7]
[322668159,1713199660857,-500.0,0.0003315,7]
[322668160,1713199660880,-500.0,0.0003315,7]
[322668161,1713199660900,-500.0,0.0003315,7]
[322668162,1713199660923,-500.0,0.0003315,7]
[322668163,1713199660943,-217.98522999,0.0003315,7]
[322668164,1713199660966,-789.07,0.0003315,7]
[322668165,1713199660987,-226.78508684,0.0003315,7]
[322668166,1713199661009,-500.0,0.0003315,7]
[322668167,1713199661029,-500.0,0.0003315,7]
[322668168,1713199661050,-174.47532086,0.0003315,7]
[322668169,1713199661071,-500.0,0.0003315,7]
[322668170,1713199661091,-1000.0,0.0003315,2]
[322668171,1713199661113,-500.0,0.0003315,7]
[322668172,1713199661133,-692.83,0.0003315,7]
[322668173,1713199661153,-1789.68,0.0003315,7]
[322668174,1713199661178,-500.0,0.0003315,7]
[322668175,1713199661202,-700.35,0.0003315,7]
[322668176,1713199661223,-500.0,0.0003315,7]
[322668177,1713199661243,-745.72,0.0003315,7]
[322668178,1713199661263,-500.0,0.0003315,7]
[322668179,1713199661284,-500.0,0.0003315,7]
[322668180,1713199661305,-500.0,0.0003315,7]
[322668181,1713199661325,-500.0,0.0003315,7]
[322668182,1713199661344,-500.0,0.0003315,7]
[322668183,1713199661364,-500.0,0.0003315,7]
[322668184,1713199661383,-617.57,0.0003315,7]
[322668185,1713199661404,-503.34621657,0.0003315,7]
[322668186,1713199661430,-500.0,0.0003315,7]
[322668187,1713199661450,-500.0,0.0003315,7]
[322668188,1713199661470,-500.0,0.0003315,7]
[322668189,1713199661491,-516.93,0.0003315,7]
[322668190,1713199661511,-500.0,0.0003315,7]
[322668191,1713199661532,-500.0,0.0003315,7]
[322668192,1713199661553,-500.0,0.0003315,7]
[322668193,1713199661574,-1658.86,0.0003315,7]
[322668194,1713199661593,-500.0,0.0003315,7]
[322668195,1713199661613,-500.0,0.0003315,7]
[322668196,1713199661633,-507.38979876,0.0003315,7]
[322668197,1713199661653,-500.0,0.0003315,7]
[322668198,1713199661676,-500.0,0.0003315,7]
[322668199,1713199661696,-372.20226657,0.0003315,7]
[322668200,1713199661716,-500.0,0.0003315,7]
[322668201,1713199661735,-2375.51,0.0003315,7]
[322668202,1713199661755,-500.89219227,0.0003315,7]
[322668203,1713199661775,-500.0,0.0003315,7]
[322668204,1713199661795,-489.64851524,0.0003315,7]
[322668205,1713199661815,-500.0,0.0003315,7]
[322668206,1713199661835,-500.0,0.0003315,7]
[322668207,1713199661855,-500.0,0.0003315,7]
[322668208,1713199661877,-715.19,0.0003315,7]
[322668209,1713199661904,-304.31882392,0.0003315,7]
[322668210,1713199661929,-500.0,0.0003315,7]
[322668211,1713199661949,-500.0,0.0003315,7]
[322668212,1713199661971,-2331.62,0.0003315,7]
[322668213,1713199661992,-500.0,0.0003315,7]
[322668214,1713199662011,-1440.48,0.0003315,7]
[322668215,1713199662031,-500.0,0.0003315,7]
[322668216,1713199662052,-500.0,0.0003315,7]
[322668217,1713199662072,-2420.65,0.0003315,7]
[322668218,1713199662092,-500.0,0.0003315,7]
[322668219,1713199662112,-500.0,0.0003315,7]
[322668220,1713199662133,-500.0,0.0003315,7]
[322668221,1713199662153,-760.29,0.0003315,7]
[322668222,1713199662176,-500.0,0.0003315,7]
[322668223,1713199662195,-500.0,0.0003315,7]
[322668224,1713199662215,-500.0,0.0003315,7]
[322668225,1713199662235,-500.0,0.0003315,7]
[322668226,1713199662255,-883.03,0.0003315,7]
[322668227,1713199662275,-500.0,0.0003315,7]
[322668228,1713199662295,-500.0,0.0003315,7]
[322668229,1713199662314,-910.9,0.0003315,7]
[322668230,1713199662334,-500.0,0.0003315,7]
[322668231,1713199662354,-614.37,0.0003315,7]
[322668232,1713199662373,-500.0,0.0003315,7]
[322668233,1713199662394,-500.0,0.0003315,7]
[322668234,1713199662414,-518.53741268,0.0003315,7]
[322668235,1713199662437,-500.0,0.0003315,7]
[322668236,1713199662458,-608.21,0.0003315,7]
[322668237,1713199662479,-932.71,0.0003315,7]
[322668238,1713199662499,-500.0,0.0003315,7]
[322668239,1713199662521,-500.0,0.0003315,7]
[322668240,1713199662541,-500.0,0.0003315,7]
[322668241,1713199662562,-500.0,0.0003315,7]
[322668242,1713199662582,-552.93,0.0003315,7]
[322668243,1713199662602,-500.0,0.0003315,7]
[322668244,1713199662625,-172.36700485,0.0003315,7]
[322668245,1713199662647,-530.22,0.0003315,7]
[322668246,1713199662669,-500.0,0.0003315,7]
[322668247,1713199662801,-281.05363168,0.0003315,7]
[322668248,1713199662823,-2349.06,0.0003315,7]
[322668249,1713199662845,-500.0,0.0003315,7]
[322668250,1713199662868,-619.3414708,0.0003315,7]
[322668251,1713199662894,-500.0,0.0003315,7]
[322668252,1713199662915,-500.0,0.0003315,7]
[322668253,1713199662936,-500.0,0.0003315,7]
[322668254,1713199662958,-500.0,0.0003315,7]
[322668255,1713199662981,-500.0,0.0003315,7]
[322668256,1713199663003,-500.0,0.0003315,7]
[322668257,1713199663026,-299.76947038,0.0003315,7]
[322668258,1713199663048,-2645.46,0.0003315,7]
[322668259,1713199663069,-500.0,0.0003315,7]
[322668260,1713199663091,-573.41984339,0.0003315,7]
[322668261,1713199663113,-318.69758955,0.0003315,7]
[322668262,1713199663135,-911.11,0.0003315,7]
[322668263,1713199663156,-500.0,0.0003315,7]
[322668264,1713199663180,-456.80100492,0.0003315,7]
[322668265,1713199663203,-1823.91,0.0003315,7]
[322668266,1713199663224,-500.0,0.0003315,7]
[322668267,1713199663246,-500.0,0.0003315,7]
[322668268,1713199663266,-23124.23,0.0003315,7]
[322668269,1713199663287,-695.8,0.0003315,7]
[322668270,1713199663306,-4690.64,0.0003315,7]
[322668271,1713199663326,-500.0,0.0003315,7]
[322668272,1713199663346,-2295.67,0.0003315,7]
[322668273,1713199663366,-500.0,0.0003315,7]
[322668274,1713199663386,-2692.81,0.0003315,7]
[322668275,1713199663406,-1025.8,0.0003315,7]
[322668276,1713199663430,-3179.75,0.0003315,7]
[322668277,1713199663450,-500.0,0.0003315,7]
[322668278,1713199663471,-500.0,0.0003315,7]
[322668279,1713199663492,-500.0,0.0003315,7]
[322668280,1713199663513,-30818.44098962,0.0003315,7]
[322668412,1713199838546,-191.09643603,0.00032775,4]
[322668413,1713199838556,-2000.0,0.00032776,2]
[322668414,1713199838565,-1207.68307072,0.00032875,2]
[322668416,1713199838576,-4490.85859588,0.00032875,2]
[322668417,1713199838585,-400.0,0.00032875,2]
[322668418,1713199838594,-835.19,0.00032876,7]
[322668419,1713199838603,-2914.77,0.00032876,7]
[322668420,1713199838613,-21197.21,0.00032876,7]
[322668421,1713199838621,-500.0,0.00032876,7]
[322668422,1713199838631,-678.41,0.00032876,7]
[322668423,1713199838640,-500.0,0.00032876,7]
[322668424,1713199838649,-637.82,0.00032876,7]
[322668425,1713199838659,-706.57,0.00032876,7]
[322668426,1713199838669,-500.0,0.00032876,7]
[322668427,1713199838678,-4299.76,0.00032876,7]
[322668428,1713199838687,-500.0,0.00032876,7]
[322668429,1713199838696,-2646.62416452,0.00032876,7]
[322668430,1713199838712,-10811.9458,0.00032876,7]
[322668431,1713199839280,-17456.180687,0.00032876,7]
[322668434,1713199840368,-10914.09934848,0.00032876,7]
[322668435,1713199840377,-723.31,0.00032876,7]
[322668437,1713199840388,-500.0,0.00032876,7]
[322668438,1713199840398,-500.0,0.00032876,7]
[322668439,1713199840408,-2468.41,0.00032876,7]
[322668440,1713199840419,-500.0,0.00032876,7]
[322668441,1713199840429,-508.8153647,0.00032876,7]
[322668442,1713199840440,-940.32,0.00032876,7]
[322668443,1713199840450,-1671.92,0.00032876,7]
[322668444,1713199840460,-500.0,0.00032876,7]
[322668445,1713199840471,-655.59,0.00032876,7]
[322668446,1713199840480,-500.0,0.00032876,7]
[322668447,1713199840488,-1965.3,0.00032876,7]
[322668448,1713199840498,-8937.75,0.00032876,7]
[322668449,1713199840507,-500.0,0.00032876,7]
[322668450,1713199840516,-635.09,0.00032876,7]
[322668451,1713199840526,-500.0,0.00032876,7]
[322668452,1713199840535,-500.0,0.00032876,7]
[322668453,1713199840546,-2479.72,0.00032876,7]
[322668454,1713199840556,-500.0,0.00032876,7]
[322668455,1713199840565,-315.08188368,0.00032876,7]
[322668456,1713199840573,-500.0,0.00032876,7]
[322668457,1713199840583,-641.99,0.00032876,7]
[322668458,1713199840592,-500.0,0.00032876,7]
[322668459,1713199840601,-500.0,0.00032876,7]
[322668460,1713199840611,-687.05,0.00032876,7]
[322668461,1713199840620,-500.0,0.00032876,7]
[322668462,1713199840629,-500.0,0.00032876,7]
[322668463,1713199840639,-500.0,0.00032876,7]
[322668464,1713199840649,-500.0,0.00032876,7]
[322668465,1713199840659,-1457.26,0.00032876,7]
[322668466,1713199840668,-500.0,0.00032876,7]
[322668467,1713199840679,-500.0,0.00032876,7]
[322668468,1713199840689,-500.0,0.00032876,7]
[322668469,1713199840699,-2218.92,0.00032876,7]
[322668470,1713199840709,-8032.98,0.00032876,7]
[322668471,1713199840720,-501.88530257,0.00032876,7]
[322668472,1713199840730,-2531.3,0.00032876,7]
[322668473,1713199840740,-2151.69,0.00032876,7]
[322668474,1713199840750,-1722.04,0.00032876,7]
[322668475,1713199840760,-745.68,0.00032876,7]
[322668476,1713199840770,-500.0,0.00032876,7]
[322668477,1713199840779,-563.17,0.00032876,7]
[322668478,1713199840789,-525.86198554,0.00032876,7]
[322668479,1713199840802,-429.68498643,0.00032876,7]
[322668480,1713199840811,-500.0,0.00032876,7]
[322668481,1713199840821,-500.0,0.00032876,7]
[322668482,1713199840830,-809.44,0.00032876,7]
[322668483,1713199840840,-300.0,0.00032876,7]
[322668484,1713199840849,-500.0,0.00032876,7]
[322668485,1713199840858,-7305.31,0.00032876,7]
[322668486,1713199840867,-10000.0,0.00033,12]
[322668487,1713199840876,-157.65740478,0.00033089,2]
[322668488,1713199840886,-3712.09,0.00033149,2]
[322668489,1713199840895,-500.0,0.0003315,7]
[322668490,1713199840904,-501.72738684,0.0003315,7]
[322668491,1713199840913,-545.37,0.0003315,7]
[322668492,1713199840922,-500.0,0.0003315,7]
[322668493,1713199840932,-500.0,0.0003315,7]
[322668494,1713199840946,-214.36875898,0.0003315,7]
[322668495,1713199840955,-503.85,0.0003315,7]
[322668496,1713199840964,-500.0,0.0003315,7]
[322668497,1713199840974,-500.0,0.0003315,7]
[322668498,1713199840983,-500.0,0.0003315,7]
[322668499,1713199840992,-500.0,0.0003315,7]
[322668500,1713199841002,-500.0,0.0003315,7]
[322668501,1713199841012,-663.12,0.0003315,7]
[322668502,1713199841025,-500.0,0.0003315,7]
[322668503,1713199841034,-500.0,0.0003315,7]
[322668504,1713199841047,-500.0,0.0003315,7]
[322668505,1713199841056,-555.31881766,0.0003315,7]
[322668506,1713199841066,-500.0,0.0003315,7]
[322668507,1713199841075,-5943.25,0.0003315,7]
[322668508,1713199841084,-500.0,0.0003315,7]
[322668509,1713199841093,-500.0,0.0003315,7]
[322668510,1713199841101,-776.46,0.0003315,7]
[322668511,1713199841111,-500.0,0.0003315,7]
[322668512,1713199841119,-500.0,0.0003315,7]
[322668513,1713199841129,-500.0,0.0003315,7]
[322668514,1713199841138,-500.0,0.0003315,7]
[322668515,1713199841147,-500.0,0.0003315,7]
[322668516,1713199841156,-500.0,0.0003315,7]
[322668517,1713199841166,-500.0,0.0003315,7]
[322668518,1713199841175,-500.0,0.0003315,7]
[322668519,1713199841184,-500.0,0.0003315,7]
[322668520,1713199841193,-500.0,0.0003315,7]
[322668521,1713199841201,-1318.55,0.0003315,7]
[322668522,1713199841211,-217.25260511,0.0003315,7]
[322668523,1713199841220,-500.0,0.0003315,7]
[322668524,1713199841229,-615.39,0.0003315,7]
[322668525,1713199841238,-1691.29,0.0003315,7]
[322668526,1713199841247,-1273.92,0.0003315,7]
[322668527,1713199841256,-500.0,0.0003315,7]
[322668528,1713199841265,-4086.84,0.0003315,7]
[322668529,1713199841274,-868.99,0.0003315,7]
[322668530,1713199841283,-500.0,0.0003315,7]
[322668531,1713199841294,-500.0,0.0003315,7]
[322668532,1713199841303,-835.19,0.0003315,7]
[322668533,1713199841312,-2914.77,0.0003315,7]
[322668534,1713199841321,-21197.21,0.0003315,7]
[322668535,1713199841331,-678.41,0.0003315,7]
[322668536,1713199841340,-500.0,0.0003315,7]
[322668537,1713199841350,-637.82,0.0003315,7]
[322668538,1713199841360,-706.57,0.0003315,7]
[322668539,1713199841369,-535.62780696,0.0003315,7]
[322668540,1713199841379,-4299.76,0.0003315,7]
[322668541,1713199841389,-4846.42835322,0.0003315,5]
[322668542,1713199841399,-500.0,0.0003315,7]
[322668543,1713199841409,-41828.85,0.0003315,7]
[322668544,1713199841418,-723.31,0.0003315,7]
[322668545,1713199841427,-500.0,0.0003315,7]
[322668546,1713199841437,-500.0,0.0003315,7]
[322668547,1713199841446,-2468.41,0.0003315,7]
[322668548,1713199841456,-500.0,0.0003315,7]
[322668549,1713199841465,-940.32,0.0003315,7]
[322668550,1713199841475,-1671.92,0.0003315,7]
[322668551,1713199841484,-500.0,0.0003315,7]
[322668552,1713199841492,-655.59,0.0003315,7]
[322668553,1713199841502,-500.0,0.0003315,7]
[322668554,1713199841511,-1965.3,0.0003315,7]
[322668555,1713199841521,-8937.75,0.0003315,7]
[322668556,1713199841532,-500.0,0.0003315,7]
[322668557,1713199841542,-635.09,0.0003315,7]
[322668558,1713199841551,-500.0,0.0003315,7]
[322668559,1713199841560,-500.0,0.0003315,7]
[322668560,1713199841569,-2479.72,0.0003315,7]
[322668561,1713199841578,-521.83426309,0.0003315,7]
[322668562,1713199841587,-500.0,0.0003315,7]
[322668563,1713199841597,-641.99,0.0003315,7]
[322668564,1713199841607,-500.0,0.0003315,7]
[322668565,1713199841617,-500.0,0.0003315,7]
[322668566,1713199841626,-687.05,0.0003315,7]
[322668567,1713199841636,-500.0,0.0003315,7]
[322668568,1713199841645,-500.0,0.0003315,7]
[322668569,1713199841654,-500.0,0.0003315,7]
[322668570,1713199841664,-508.0,0.0003315,7]
[322668571,1713199841673,-1457.26,0.0003315,7]
[322668572,1713199841682,-500.0,0.0003315,7]
[322668573,1713199841691,-500.0,0.0003315,7]
[322668574,1713199841701,-500.0,0.0003315,7]
[322668575,1713199841710,-2218.92,0.0003315,7]
[322668576,1713199841719,-8032.98,0.0003315,7]
[322668577,1713199841728,-2531.3,0.0003315,7]
[322668578,1713199841738,-2151.69,0.0003315,7]
[322668579,1713199841747,-1722.04,0.0003315,7]
[322668580,1713199841756,-745.68,0.0003315,7]
[322668581,1713199841765,-500.0,0.0003315,7]
[322668582,1713199841774,-563.17,0.0003315,7]
[322668583,1713199841783,-500.0,0.0003315,7]
[322668584,1713199841793,-500.0,0.0003315,7]
[322668585,1713199841802,-809.44,0.0003315,7]
[322668586,1713199841811,-246.130495,0.0003315,7]
[322668587,1713199841821,-500.0,0.0003315,7]
[322668588,1713199841830,-7305.31,0.0003315,7]
[322668589,1713199841840,-543.393329,0.00033165,2]
[322668590,1713199841849,-153.0,0.00033205,2]
[322668591,1713199841858,-153.0,0.00033205,2]
[322668592,1713199841867,-153.0,0.00033205,2]
[322668593,1713199841876,-153.0,0.00033205,2]
[322668594,1713199841885,-153.0,0.00033205,2]
[322668595,1713199841894,-153.0,0.00033205,2]
[322668596,1713199841903,-306.0,0.00033205,2]
[322668597,1713199841912,-153.0,0.00033205,2]
[322668598,1713199841921,-153.0,0.00033205,2]
[322668599,1713199841935,-153.0,0.00033205,2]
[322668600,1713199841944,-257.9663183,0.00033205,2]
[322668601,1713199841953,-153.0,0.00033205,2]
[322668602,1713199841963,-153.0,0.00033205,2]
[322668603,1713199841974,-581.08592655,0.00033331,7]
[322668604,1713199841983,-327.06473728,0.00033332,4]
[322668605,1713199841992,-24082.54883949,0.00033332,4]
[322668606,1713199842002,-4454.51,0.00033423,2]
[322668607,1713199842011,-3712.09,0.00033423,2]
[322668608,1713199842020,-248.82931407,0.00033423,7]
[322668609,1713199842030,-153.0,0.00033423,2]
[322668610,1713199842039,-153.0,0.00033423,2]
[322668611,1713199842050,-153.0,0.00033423,2]
[322668612,1713199842060,-153.0,0.00033423,2]
[322668613,1713199842069,-153.0,0.00033423,2]
[322668614,1713199842078,-153.0,0.00033423,2]
[322668615,1713199842087,-153.0,0.00033423,2]
[322668616,1713199842096,-153.0,0.00033423,2]
[322668617,1713199842106,-153.0,0.00033423,2]
[322668618,1713199842115,-153.0,0.00033423,2]
[322668619,1713199842125,-153.0,0.00033423,2]
[322668620,1713199842134,-153.0,0.00033423,2]
[322668621,1713199842145,-153.0,0.00033423,2]
[322668622,1713199842155,-153.0,0.00033423,2]
[322668623,1713199842165,-275.8667769,0.00033423,2]
[322668624,1713199842175,-3588.69201129,0.00033424,5]
[322668625,1713199842184,-500.0,0.00033424,7]
[322668626,1713199842194,-500.0,0.00033424,7]
[322668627,1713199842203,-500.0,0.00033424,7]
[322668628,1713199842214,-500.0,0.00033424,7]
[322668630,1713199842224,-500.0,0.00033424,7]
[322668632,1713199842234,-500.0,0.00033424,7]
[322668634,1713199842242,-500.0,0.00033424,7]
[322668636,1713199842252,-500.0,0.00033424,7]
[322668638,1713199842260,-1789.68,0.00033424,7]
[322668640,1713199842269,-500.0,0.00033424,7]
[322668642,1713199842279,-745.72,0.00033424,7]
[322668644,1713199842288,-500.0,0.00033424,7]
[322668646,1713199842299,-500.0,0.00033424,7]
[322668648,1713199842309,-339.9345852,0.00033424,7]
[322668650,1713199842319,-647.06110607,0.00033424,7]
[322668652,1713199842328,-617.57,0.00033424,7]
[322668654,1713199842338,-500.0,0.00033424,7]
[322668656,1713199842347,-500.0,0.00033424,7]
[322668658,1713199842357,-516.93,0.00033424,7]
[322668660,1713199842366,-500.0,0.00033424,7]
[322668662,1713199842375,-1658.86,0.00033424,7]
[322668664,1713199842384,-500.0,0.00033424,7]
[322668665,1713199842393,-500.0,0.00033424,7]
[322668667,1713199842402,-500.0,0.00033424,7]
[322668669,1713199842411,-500.0,0.00033424,7]
[322668671,1713199842420,-2375.51,0.00033424,7]
[322668674,1713199842430,-500.0,0.00033424,7]
[322668675,1713199842439,-500.0,0.00033424,7]
[322668677,1713199842448,-649.48781285,0.00033424,7]
[322668679,1713199842458,-500.0,0.00033424,7]
[322668681,1713199842467,-500.0,0.00033424,7]
[322668684,1713199842476,-1440.48,0.00033424,7]
[322668686,1713199842486,-500.0,0.00033424,7]
[322668687,1713199842495,-500.0,0.00033424,7]
[322668689,1713199842504,-500.0,0.00033424,7]
[322668692,1713199842513,-500.0,0.00033424,7]
[322668693,1713199842522,-760.29,0.00033424,7]
[322668695,1713199842532,-500.0,0.00033424,7]
[322668697,1713199842542,-500.0,0.00033424,7]
[322668699,1713199842551,-500.0,0.00033424,7]
[322668702,1713199842562,-500.0,0.00033424,7]
[322668703,1713199842571,-910.9,0.00033424,7]
[322668705,1713199842581,-500.0,0.00033424,7]
[322668707,1713199842590,-506.27598173,0.00033424,7]
[322668710,1713199842600,-349.79483666,0.00033424,7]
[322668712,1713199842610,-500.0,0.00033424,7]
[322668714,1713199842619,-608.21,0.00033424,7]
[322668716,1713199842628,-932.71,0.00033424,7]
[322668718,1713199842637,-500.0,0.00033424,7]
[322668720,1713199842646,-500.0,0.00033424,7]
[322668722,1713199842655,-500.0,0.00033424,7]
[322668724,1713199842665,-552.93,0.00033424,7]
[322668726,1713199842674,-500.0,0.00033424,7]
[322668728,1713199842683,-500.0,0.00033424,7]
[322668729,1713199842693,-274.05696926,0.00033424,7]
[322668732,1713199842703,-500.0,0.00033424,7]
[322668733,1713199842712,-500.0,0.00033424,7]
[322668735,1713199842722,-500.0,0.00033424,7]
[322668737,1713199842731,-500.0,0.00033424,7]
[322668739,1713199842740,-500.0,0.00033424,7]
[322668742,1713199842750,-2645.46,0.00033424,7]
[322668744,1713199842759,-508.20047574,0.00033424,7]
[322668746,1713199842769,-500.0,0.00033424,7]
[322668748,1713199842780,-500.0,0.00033424,7]
[322668750,1713199842789,-500.0,0.00033424,7]
[322668751,1713199842798,-299.36065632,0.00033424,7]
[322668754,1713199842807,-500.0,0.00033424,7]